[Event "*** Titled Tuesday Blitz"]
[Site "Chess.com"]
[Date "2021.03.02"]
[Round "11"]
[White "Azeryahu"]
[Black "Msb2"]
[Result "0-1"]
[WhiteElo "2740"]
[BlackElo "2900"]
[TimeControl "180+1"]
[EndTime "12:10:05 PST"]
[Termination "Msb2 won by resignation"]

1. d4 {[%clk 0:03:00.9]} 1... d5 {[%clk 0:02:59.2]} 2. c4 {[%clk 0:03:00]} 2...
e6 {[%clk 0:02:58.9]} 3. Nc3 {[%clk 0:02:59.8]} 3... Nf6 {[%clk 0:02:58.3]} 4.
cxd5 {[%clk 0:02:59.7]} 4... exd5 {[%clk 0:02:59.2]} 5. Bg5 {[%clk 0:02:59.2]}
5... c6 {[%clk 0:02:59.7]} 6. e3 {[%clk 0:02:59.1]} 6... h6 {[%clk 0:03:00.3]}
7. Bh4 {[%clk 0:02:58.7]} 7... Be7 {[%clk 0:03:01]} 8. Bd3 {[%clk 0:02:57.4]}
8... O-O {[%clk 0:03:00.9]} 9. Qc2 {[%clk 0:02:57.7]} 9... Re8 {[%clk
0:03:01.2]} 10. Nf3 {[%clk 0:02:54.8]} 10... Ne4 {[%clk 0:03:01.2]} 11. Bxe7
{[%clk 0:02:53.2]} 11... Qxe7 {[%clk 0:03:02.1]} 12. O-O {[%clk 0:02:48.2]}
12... Bf5 {[%clk 0:03:00.5]} 13. Rab1 {[%clk 0:02:06.8]} 13... Nd7 {[%clk
0:02:49.5]} 14. b4 {[%clk 0:02:06.2]} 14... Nb6 {[%clk 0:02:28.3]} 15. Ne5
{[%clk 0:01:50.2]} 15... f6 {[%clk 0:02:17.1]} 16. Nf3 {[%clk 0:01:37.8]} 16...
Rac8 {[%clk 0:02:12]} 17. a3 {[%clk 0:01:18.3]} 17... a6 {[%clk 0:02:03.3]} 18.
Rbe1 {[%clk 0:01:16.8]} 18... g5 {[%clk 0:01:19.3]} 19. Nd2 {[%clk 0:00:46.2]}
19... Nxd2 {[%clk 0:01:17.2]} 20. Qxd2 {[%clk 0:00:47.1]} 20... Qh7 {[%clk
0:01:15.3]} 21. Be2 {[%clk 0:00:20.4]} 21... Re7 {[%clk 0:01:14]} 22. a4 {[%clk
0:00:20]} 22... Rce8 {[%clk 0:01:11.6]} 23. a5 {[%clk 0:00:20]} 23... Nc8 {[%clk
0:01:12]} 24. Na4 {[%clk 0:00:19.6]} 24... Nd6 {[%clk 0:01:09.8]} 25. Nc5 {[%clk
0:00:20.2]} 25... h5 {[%clk 0:01:04.5]} 26. Bd3 {[%clk 0:00:11.5]} 26... h4
{[%clk 0:01:05]} 27. Bxf5 {[%clk 0:00:11]} 27... Qxf5 {[%clk 0:01:05.9]} 28. Qd3
{[%clk 0:00:10.8]} 28... Qxd3 {[%clk 0:00:58.5]} 29. Nxd3 {[%clk 0:00:11.7]}
29... Kg7 {[%clk 0:00:59.4]} 30. h3 {[%clk 0:00:11.2]} 30... Kg6 {[%clk
0:00:59.6]} 31. Rc1 {[%clk 0:00:10.3]} 31... Kf5 {[%clk 0:00:55]} 32. Rfd1
{[%clk 0:00:10.2]} 32... Rg8 {[%clk 0:00:53.7]} 33. Kh2 {[%clk 0:00:08.8]} 33...
Nc4 {[%clk 0:00:49.8]} 34. Rc2 {[%clk 0:00:07.5]} 34... Reg7 {[%clk 0:00:48.2]}
35. Nb2 {[%clk 0:00:05.2]} 35... Nd6 {[%clk 0:00:40.5]} 36. f3 {[%clk
0:00:04.4]} 36... Re7 {[%clk 0:00:40.5]} 37. Rd3 {[%clk 0:00:04.7]} 37... Rge8
{[%clk 0:00:41.1]} 38. Rcc3 {[%clk 0:00:03.4]} 38... Kg6 {[%clk 0:00:39.1]} 39.
Kg1 {[%clk 0:00:03.5]} 39... f5 {[%clk 0:00:38.5]} 40. Kf2 {[%clk 0:00:04]}
40... f4 {[%clk 0:00:39]} 41. Rb3 {[%clk 0:00:03.8]} 41... Nf5 {[%clk
0:00:38.6]} 42. Nd1 {[%clk 0:00:02.9]} 42... Kf6 {[%clk 0:00:38.6]} 43. Rbc3
{[%clk 0:00:02.7]} 43... Re6 {[%clk 0:00:34]} 44. Rb3 {[%clk 0:00:03.1]} 44...
R8e7 {[%clk 0:00:34.6]} 45. Rbc3 {[%clk 0:00:03.5]} 45... Kf7 {[%clk 0:00:35.2]}
46. Rb3 {[%clk 0:00:04]} 46... Ke8 {[%clk 0:00:35.9]} 47. Rbc3 {[%clk
0:00:04.7]} 47... Kd7 {[%clk 0:00:36.6]} 48. Rb3 {[%clk 0:00:05.3]} 48... Kc7
{[%clk 0:00:37.3]} 49. Rbc3 {[%clk 0:00:05.9]} 49... b6 {[%clk 0:00:37.9]} 50.
Ra3 {[%clk 0:00:05.1]} 50... Nd6 {[%clk 0:00:28.7]} 51. Rab3 {[%clk 0:00:05.3]}
51... Nc4 {[%clk 0:00:28.5]} 52. Rbc3 {[%clk 0:00:04.5]} 52... bxa5 {[%clk
0:00:28]} 53. bxa5 {[%clk 0:00:05.4]} 53... Nxa5 {[%clk 0:00:28.9]} 54. e4
{[%clk 0:00:05.1]} 54... dxe4 {[%clk 0:00:28.4]} 55. fxe4 {[%clk 0:00:06]} 55...
Rxe4 {[%clk 0:00:29.3]} 56. d5 {[%clk 0:00:06.2]} 56... Rd7 {[%clk 0:00:24.3]}
57. Kf3 {[%clk 0:00:05.1]} 57... Rc4 {[%clk 0:00:22.5]} 58. Rxc4 {[%clk
0:00:02]} 58... Nxc4 {[%clk 0:00:23.4]} 59. Nc3 {[%clk 0:00:02.8]} 59... Ne5+
{[%clk 0:00:23.5]} 0-1

[Event "*** Titled Tuesday Blitz"]
[Site "Chess.com"]
[Date "2021.03.02"]
[Round "11"]
[White "EvgenyT"]
[Black "GM_Crest"]
[Result "1/2-1/2"]
[WhiteElo "2912"]
[BlackElo "2790"]
[TimeControl "180+1"]
[EndTime "12:10:07 PST"]
[Termination "Game drawn - insufficient material"]

1. Nf3 {[%clk 0:03:00.9]} 1... Nf6 {[%clk 0:02:58.5]} 2. g3 {[%clk 0:03:00.9]}
2... d5 {[%clk 0:02:58.2]} 3. Bg2 {[%clk 0:03:01.1]} 3... c6 {[%clk 0:02:58.7]}
4. O-O {[%clk 0:03:00.9]} 4... Bg4 {[%clk 0:02:59.3]} 5. d3 {[%clk 0:02:59.2]}
5... Nbd7 {[%clk 0:02:59.1]} 6. h3 {[%clk 0:02:57.4]} 6... Bh5 {[%clk
0:02:58.8]} 7. c4 {[%clk 0:02:57.1]} 7... dxc4 {[%clk 0:02:56.1]} 8. dxc4 {[%clk
0:02:56.8]} 8... e5 {[%clk 0:02:56.5]} 9. Nc3 {[%clk 0:02:53.8]} 9... Bc5 {[%clk
0:02:50.8]} 10. Nh4 {[%clk 0:02:47.5]} 10... O-O {[%clk 0:02:46.2]} 11. Qc2
{[%clk 0:02:46.4]} 11... a5 {[%clk 0:02:41]} 12. Bg5 {[%clk 0:02:42.3]} 12...
Qc7 {[%clk 0:02:38.3]} 13. Rad1 {[%clk 0:02:34.8]} 13... Rfe8 {[%clk 0:02:36.3]}
14. g4 {[%clk 0:02:27.9]} 14... Bg6 {[%clk 0:02:34.9]} 15. Nxg6 {[%clk
0:02:28.3]} 15... hxg6 {[%clk 0:02:35.5]} 16. e3 {[%clk 0:02:28.2]} 16... Nf8
{[%clk 0:02:23.1]} 17. Bh4 {[%clk 0:02:14.8]} 17... N6h7 {[%clk 0:01:59.8]} 18.
Ne4 {[%clk 0:02:08.5]} 18... Be7 {[%clk 0:01:59.1]} 19. Bxe7 {[%clk 0:01:57.8]}
19... Qxe7 {[%clk 0:01:58.9]} 20. c5 {[%clk 0:01:47.7]} 20... Ne6 {[%clk
0:01:53.4]} 21. Qc3 {[%clk 0:01:37.2]} 21... Nc7 {[%clk 0:01:43]} 22. Nd6 {[%clk
0:01:29.3]} 22... Red8 {[%clk 0:01:36.8]} 23. a3 {[%clk 0:01:18.8]} 23... a4
{[%clk 0:01:36]} 24. Qc4 {[%clk 0:01:16.8]} 24... Ne6 {[%clk 0:01:24.4]} 25. Qb4
{[%clk 0:01:15.5]} 25... Rab8 {[%clk 0:01:21.8]} 26. Rd2 {[%clk 0:00:44.1]}
26... Qh4 {[%clk 0:01:21.4]} 27. f4 {[%clk 0:00:33.8]} 27... Qg3 {[%clk
0:01:11.5]} 28. Rf3 {[%clk 0:00:17.7]} 28... Qe1+ {[%clk 0:01:11.3]} 29. Kh2
{[%clk 0:00:18]} 29... exf4 {[%clk 0:00:56.9]} 30. exf4 {[%clk 0:00:17.8]} 30...
b6 {[%clk 0:00:57.5]} 31. cxb6 {[%clk 0:00:11.7]} 31... c5 {[%clk 0:00:56.3]}
32. Qc3 {[%clk 0:00:10.7]} 32... Nd4 {[%clk 0:00:56.7]} 33. Rxd4 {[%clk
0:00:09.5]} 33... Qxc3 {[%clk 0:00:55.4]} 34. bxc3 {[%clk 0:00:09.2]} 34... cxd4
{[%clk 0:00:55.7]} 35. Nc4 {[%clk 0:00:09.7]} 35... Rbc8 {[%clk 0:00:43]} 36.
Bf1 {[%clk 0:00:06.1]} 36... Nf6 {[%clk 0:00:38]} 37. cxd4 {[%clk 0:00:05.9]}
37... Rxd4 {[%clk 0:00:37]} 38. b7 {[%clk 0:00:06.1]} 38... Rb8 {[%clk
0:00:36.9]} 39. Na5 {[%clk 0:00:05.3]} 39... Rd5 {[%clk 0:00:28]} 40. Rc3 {[%clk
0:00:05.1]} 40... Nd7 {[%clk 0:00:25.8]} 41. Rc8+ {[%clk 0:00:03.7]} 41... Kh7
{[%clk 0:00:25.9]} 42. Rc7 {[%clk 0:00:03.5]} 42... g5 {[%clk 0:00:15.7]} 43.
Bg2 {[%clk 0:00:03.3]} 43... Rxa5 {[%clk 0:00:14.5]} 44. Rxd7 {[%clk 0:00:03.6]}
44... gxf4 {[%clk 0:00:13.8]} 45. Rxf7 {[%clk 0:00:04.1]} 45... Rb5 {[%clk
0:00:13.2]} 46. Rxf4 {[%clk 0:00:03.9]} 46... R5xb7 {[%clk 0:00:12.6]} 47. Bxb7
{[%clk 0:00:02.8]} 47... Rxb7 {[%clk 0:00:13.1]} 48. Rxa4 {[%clk 0:00:03.7]}
48... Rb3 {[%clk 0:00:13.2]} 49. Kg2 {[%clk 0:00:03.7]} 49... g5 {[%clk
0:00:13.3]} 50. h4 {[%clk 0:00:03.8]} 50... gxh4 {[%clk 0:00:13]} 51. Ra5 {[%clk
0:00:04.3]} 51... Rg3+ {[%clk 0:00:12]} 52. Kh2 {[%clk 0:00:04.2]} 52... Rxg4
{[%clk 0:00:12.9]} 53. Kh3 {[%clk 0:00:04.6]} 53... Rf4 {[%clk 0:00:12.6]} 54.
Rh5+ {[%clk 0:00:04.9]} 54... Kg6 {[%clk 0:00:12.5]} 55. Rxh4 {[%clk 0:00:05.8]}
55... Rf3+ {[%clk 0:00:13]} 56. Kg4 {[%clk 0:00:05.4]} 56... Rxa3 {[%clk
0:00:13.9]} 57. Rh3 {[%clk 0:00:05.7]} 57... Rxh3 {[%clk 0:00:13]} 58. Kxh3
{[%clk 0:00:06.6]} 1/2-1/2

[Event "*** Titled Tuesday Blitz"]
[Site "Chess.com"]
[Date "2021.03.02"]
[Round "11"]
[White "Klavdia_Nik"]
[Black "publicaccountcze"]
[Result "1-0"]
[WhiteElo "2061"]
[BlackElo "2172"]
[TimeControl "180+1"]
[EndTime "12:10:08 PST"]
[Termination "Klavdia_Nik won by checkmate"]

1. Nf3 {[%clk 0:02:35.2]} 1... Nf6 {[%clk 0:02:47.8]} 2. c4 {[%clk 0:02:25.5]}
2... c5 {[%clk 0:02:46.9]} 3. b3 {[%clk 0:02:24.1]} 3... d5 {[%clk 0:02:44.8]}
4. Bb2 {[%clk 0:02:22.3]} 4... e6 {[%clk 0:02:43.6]} 5. g3 {[%clk 0:02:21.1]}
5... Nc6 {[%clk 0:02:42.7]} 6. Bg2 {[%clk 0:02:20.9]} 6... d4 {[%clk 0:02:42.6]}
7. O-O {[%clk 0:02:15.3]} 7... Bd6 {[%clk 0:02:39.9]} 8. d3 {[%clk 0:02:15]}
8... O-O {[%clk 0:02:39.3]} 9. a3 {[%clk 0:02:15.1]} 9... a5 {[%clk 0:02:35.3]}
10. Nbd2 {[%clk 0:02:10.1]} 10... Rb8 {[%clk 0:02:28.7]} 11. Ng5 {[%clk
0:02:05.1]} 11... e5 {[%clk 0:02:16.4]} 12. Nge4 {[%clk 0:02:03.9]} 12... Nxe4
{[%clk 0:02:11.7]} 13. Nxe4 {[%clk 0:02:03.8]} 13... f5 {[%clk 0:02:11.7]} 14.
Nxd6 {[%clk 0:02:02]} 14... Qxd6 {[%clk 0:02:11.6]} 15. Bc1 {[%clk 0:01:55.2]}
15... Bd7 {[%clk 0:02:09]} 16. Bd2 {[%clk 0:01:53.2]} 16... Rbe8 {[%clk
0:02:06.1]} 17. Qb1 {[%clk 0:01:48.7]} 17... b6 {[%clk 0:02:05.5]} 18. b4 {[%clk
0:01:33.5]} 18... axb4 {[%clk 0:02:01]} 19. axb4 {[%clk 0:01:29.2]} 19... Nxb4
{[%clk 0:01:58]} 20. Bxb4 {[%clk 0:01:27.7]} 20... cxb4 {[%clk 0:01:57.5]} 21.
Qb3 {[%clk 0:01:09.1]} 21... Kh8 {[%clk 0:01:54.8]} 22. Rfb1 {[%clk 0:01:08.1]}
22... Bc6 {[%clk 0:01:53.4]} 23. Qxb4 {[%clk 0:01:03]} 23... Qxb4 {[%clk
0:01:12.7]} 24. Rxb4 {[%clk 0:01:02.5]} 24... Bxg2 {[%clk 0:01:11.6]} 25. Kxg2
{[%clk 0:01:02.7]} 25... Rf6 {[%clk 0:01:11.3]} 26. Rab1 {[%clk 0:00:58.8]}
26... e4 {[%clk 0:00:28.3]} 27. Rxb6 {[%clk 0:00:56.6]} 27... exd3 {[%clk
0:00:24.9]} 28. exd3 {[%clk 0:00:55.3]} 28... h6 {[%clk 0:00:24.9]} 29. Rxf6
{[%clk 0:00:52.5]} 29... gxf6 {[%clk 0:00:24.2]} 30. Rb6 {[%clk 0:00:50.7]}
30... Kg7 {[%clk 0:00:22.6]} 31. Rd6 {[%clk 0:00:50.5]} 31... Re2 {[%clk
0:00:21.1]} 32. Rxd4 {[%clk 0:00:49.8]} 32... Kg6 {[%clk 0:00:20.9]} 33. Kf3
{[%clk 0:00:48.3]} 33... Rd2 {[%clk 0:00:19.1]} 34. h4 {[%clk 0:00:47.8]} 34...
Kh5 {[%clk 0:00:15.3]} 35. c5 {[%clk 0:00:40.1]} 35... Rc2 {[%clk 0:00:14.7]}
36. Rc4 {[%clk 0:00:38.3]} 36... Rd2 {[%clk 0:00:12.5]} 37. Ke3 {[%clk
0:00:38.2]} 37... Ra2 {[%clk 0:00:10.5]} 38. c6 {[%clk 0:00:38.1]} 38... Ra8
{[%clk 0:00:10.6]} 39. c7 {[%clk 0:00:38.2]} 39... Rc8 {[%clk 0:00:11.5]} 40. d4
{[%clk 0:00:32.2]} 40... Kg6 {[%clk 0:00:10]} 41. d5 {[%clk 0:00:31.7]} 41...
Kf7 {[%clk 0:00:10.5]} 42. d6 {[%clk 0:00:31.7]} 42... Ke6 {[%clk 0:00:10.2]}
43. Rd4 {[%clk 0:00:31.6]} 43... Kd7 {[%clk 0:00:09.5]} 44. Kf4 {[%clk
0:00:31.3]} 44... Ra8 {[%clk 0:00:06.6]} 45. Kxf5 {[%clk 0:00:31.3]} 45... Ra2
{[%clk 0:00:06.5]} 46. f4 {[%clk 0:00:21.4]} 46... Ra3 {[%clk 0:00:04.8]} 47. g4
{[%clk 0:00:20.7]} 47... Rg3 {[%clk 0:00:04]} 48. h5 {[%clk 0:00:19.6]} 48...
Rg2 {[%clk 0:00:02.6]} 49. Rc4 {[%clk 0:00:15.4]} 49... Rg1 {[%clk 0:00:01.9]}
50. c8=Q+ {[%clk 0:00:13.7]} 50... Kxd6 {[%clk 0:00:02.4]} 51. Qc6+ {[%clk
0:00:11.6]} 51... Ke7 {[%clk 0:00:02.1]} 52. Qe6+ {[%clk 0:00:09.1]} 52... Kd8
{[%clk 0:00:01.5]} 53. Rc8# {[%clk 0:00:08.8]} 1-0

[Event "*** Titled Tuesday Blitz"]
[Site "Chess.com"]
[Date "2021.03.02"]
[Round "11"]
[White "CrazyMartian"]
[Black "Chimpinha"]
[Result "1-0"]
[WhiteElo "2299"]
[BlackElo "2386"]
[TimeControl "180+1"]
[EndTime "12:10:13 PST"]
[Termination "CrazyMartian won by resignation"]

1. d4 {[%clk 0:03:00.9]} 1... Nf6 {[%clk 0:02:58.3]} 2. c4 {[%clk 0:03:00.9]}
2... e5 {[%clk 0:02:58.1]} 3. dxe5 {[%clk 0:03:00.4]} 3... Ng4 {[%clk
0:02:57.7]} 4. Nf3 {[%clk 0:03:00.6]} 4... Bc5 {[%clk 0:02:55.9]} 5. e3 {[%clk
0:03:00.4]} 5... Nc6 {[%clk 0:02:54.9]} 6. Nc3 {[%clk 0:02:59.3]} 6... O-O
{[%clk 0:02:53.7]} 7. a3 {[%clk 0:02:58.1]} 7... a5 {[%clk 0:02:51.9]} 8. Nd5
{[%clk 0:02:45]} 8... Ncxe5 {[%clk 0:02:49.3]} 9. Nxe5 {[%clk 0:02:45]} 9...
Nxe5 {[%clk 0:02:48.8]} 10. f4 {[%clk 0:02:44]} 10... Nc6 {[%clk 0:02:42.5]} 11.
Bd3 {[%clk 0:02:39]} 11... Re8 {[%clk 0:02:34.2]} 12. O-O {[%clk 0:02:17.1]}
12... d6 {[%clk 0:02:31.8]} 13. Qh5 {[%clk 0:02:01.9]} 13... g6 {[%clk
0:02:28.1]} 14. Qf3 {[%clk 0:02:01]} 14... f5 {[%clk 0:02:25.9]} 15. Bd2 {[%clk
0:01:56.5]} 15... Be6 {[%clk 0:02:19]} 16. Kh1 {[%clk 0:01:54.6]} 16... Rf8
{[%clk 0:02:15.7]} 17. Bc3 {[%clk 0:01:38.9]} 17... a4 {[%clk 0:02:09.7]} 18.
Rad1 {[%clk 0:01:25.6]} 18... Na5 {[%clk 0:02:07.7]} 19. Qh3 {[%clk 0:01:01.8]}
19... c6 {[%clk 0:02:03.8]} 20. Qh6 {[%clk 0:00:58.1]} 20... Rf7 {[%clk
0:01:54.2]} 21. Nb4 {[%clk 0:00:45.9]} 21... Nxc4 {[%clk 0:01:43.6]} 22. Bxc4
{[%clk 0:00:38.9]} 22... Bxc4 {[%clk 0:01:43.3]} 23. Rfe1 {[%clk 0:00:37.4]}
23... Qf8 {[%clk 0:01:39.9]} 24. Qh4 {[%clk 0:00:34.1]} 24... Qe7 {[%clk
0:01:36.3]} 25. Qh6 {[%clk 0:00:29.9]} 25... d5 {[%clk 0:01:32.5]} 26. Nc2
{[%clk 0:00:27.5]} 26... Bb3 {[%clk 0:01:31.5]} 27. Rd2 {[%clk 0:00:27.5]} 27...
Bxc2 {[%clk 0:01:29.1]} 28. Rxc2 {[%clk 0:00:28.4]} 28... Qf8 {[%clk 0:01:26.4]}
29. Qh4 {[%clk 0:00:26.8]} 29... Be7 {[%clk 0:01:26.7]} 30. Qg3 {[%clk
0:00:26.4]} 30... Bf6 {[%clk 0:01:26.9]} 31. Bd4 {[%clk 0:00:24.8]} 31... Re8
{[%clk 0:01:20.8]} 32. Bc5 {[%clk 0:00:23.7]} 32... Qg7 {[%clk 0:01:20.6]} 33.
Qf2 {[%clk 0:00:20.9]} 33... Be7 {[%clk 0:01:15.3]} 34. Bd4 {[%clk 0:00:18.8]}
34... Bf6 {[%clk 0:01:15.3]} 35. Bc5 {[%clk 0:00:18.7]} 35... Re4 {[%clk
0:01:12.7]} 36. h3 {[%clk 0:00:18.5]} 36... Rd7 {[%clk 0:01:06.6]} 37. g4 {[%clk
0:00:18]} 37... fxg4 {[%clk 0:01:04.7]} 38. hxg4 {[%clk 0:00:18.9]} 38... Qh6+
{[%clk 0:01:02.1]} 39. Qh2 {[%clk 0:00:18]} 39... Qxh2+ {[%clk 0:01:00.8]} 40.
Kxh2 {[%clk 0:00:18.9]} 40... d4 {[%clk 0:01:00.5]} 41. Kg2 {[%clk 0:00:16.1]}
41... dxe3 {[%clk 0:00:57.1]} 42. Rxe3 {[%clk 0:00:15.6]} 42... Rxe3 {[%clk
0:00:53.9]} 43. Bxe3 {[%clk 0:00:16.5]} 43... Bd4 {[%clk 0:00:54]} 44. Kf3
{[%clk 0:00:16.1]} 44... Bxe3 {[%clk 0:00:53.6]} 45. Kxe3 {[%clk 0:00:17]} 45...
Kg7 {[%clk 0:00:53.5]} 46. Rc4 {[%clk 0:00:17.1]} 46... Re7+ {[%clk 0:00:51.5]}
47. Kf3 {[%clk 0:00:17]} 47... Rd7 {[%clk 0:00:45]} 48. Rxa4 {[%clk 0:00:17]}
48... Rd3+ {[%clk 0:00:44.8]} 49. Ke4 {[%clk 0:00:16.3]} 49... Rb3 {[%clk
0:00:45.3]} 50. Rb4 {[%clk 0:00:12.8]} 50... Rxb4+ {[%clk 0:00:45.5]} 51. axb4
{[%clk 0:00:13.7]} 51... h5 {[%clk 0:00:46]} 52. gxh5 {[%clk 0:00:09.4]} 52...
gxh5 {[%clk 0:00:46.1]} 53. Kf5 {[%clk 0:00:10]} 53... Kf7 {[%clk 0:00:40.4]}
54. Kg5 {[%clk 0:00:09.8]} 54... Ke6 {[%clk 0:00:38.3]} 55. f5+ {[%clk
0:00:08.7]} 55... Ke5 {[%clk 0:00:29.7]} 56. f6 {[%clk 0:00:08.9]} 56... Ke6
{[%clk 0:00:29.7]} 57. Kg6 {[%clk 0:00:08.2]} 57... h4 {[%clk 0:00:30.1]} 58. f7
{[%clk 0:00:08.8]} 58... h3 {[%clk 0:00:31]} 59. f8=Q {[%clk 0:00:09.2]} 59...
h2 {[%clk 0:00:31.9]} 60. Qf1 {[%clk 0:00:09.4]} 60... Kd5 {[%clk 0:00:27.9]}
61. Qh1+ {[%clk 0:00:09.4]} 1-0

[Event "*** Titled Tuesday Blitz"]
[Site "Chess.com"]
[Date "2021.03.02"]
[Round "11"]
[White "frederiksvane"]
[Black "Rondo_Capriccioso"]
[Result "0-1"]
[WhiteElo "2645"]
[BlackElo "2493"]
[TimeControl "180+1"]
[EndTime "12:10:19 PST"]
[Termination "Rondo_Capriccioso won on time"]

1. e4 {[%clk 0:03:00.9]} 1... c5 {[%clk 0:02:54.6]} 2. Nf3 {[%clk 0:03:00.8]}
2... d6 {[%clk 0:02:55.2]} 3. Bb5+ {[%clk 0:02:57.3]} 3... Bd7 {[%clk
0:02:55.3]} 4. c4 {[%clk 0:02:57.3]} 4... Nc6 {[%clk 0:02:53.2]} 5. Nc3 {[%clk
0:02:57.2]} 5... g6 {[%clk 0:02:52.2]} 6. d4 {[%clk 0:02:57.3]} 6... cxd4 {[%clk
0:02:51.3]} 7. Nxd4 {[%clk 0:02:58.2]} 7... Bg7 {[%clk 0:02:51]} 8. Be3 {[%clk
0:02:57.8]} 8... Nf6 {[%clk 0:02:51.2]} 9. h3 {[%clk 0:02:57.9]} 9... O-O {[%clk
0:02:51.6]} 10. O-O {[%clk 0:02:57.9]} 10... Nxd4 {[%clk 0:02:39.1]} 11. Bxd4
{[%clk 0:02:58.8]} 11... Bxb5 {[%clk 0:02:37.4]} 12. cxb5 {[%clk 0:02:59.7]}
12... Qd7 {[%clk 0:02:27.5]} 13. Qd3 {[%clk 0:02:47.4]} 13... Rfc8 {[%clk
0:02:27.6]} 14. f4 {[%clk 0:02:31.8]} 14... Qe6 {[%clk 0:02:21.1]} 15. Kh1
{[%clk 0:02:18.2]} 15... b6 {[%clk 0:01:49.3]} 16. b3 {[%clk 0:02:00.2]} 16...
Rc7 {[%clk 0:01:46.8]} 17. Bxf6 {[%clk 0:01:55]} 17... Bxf6 {[%clk 0:01:42]} 18.
Nd5 {[%clk 0:01:50.9]} 18... Rc5 {[%clk 0:01:39.6]} 19. f5 {[%clk 0:01:42.4]}
19... gxf5 {[%clk 0:01:30]} 20. Rae1 {[%clk 0:01:41.9]} 20... fxe4 {[%clk
0:01:18.6]} 21. Nxf6+ {[%clk 0:01:34.4]} 21... exf6 {[%clk 0:01:14.1]} 22. Rxe4
{[%clk 0:01:34]} 22... Re5 {[%clk 0:01:13.2]} 23. Ref4 {[%clk 0:01:26.2]} 23...
Re3 {[%clk 0:01:00.6]} 24. Qd2 {[%clk 0:01:06.7]} 24... Re2 {[%clk 0:00:52.4]}
25. Qd4 {[%clk 0:01:05.6]} 25... Qe5 {[%clk 0:00:51.6]} 26. Qd3 {[%clk
0:00:54.1]} 26... Rc8 {[%clk 0:00:26.4]} 27. Rf5 {[%clk 0:00:27.6]} 27... Qe4
{[%clk 0:00:17.3]} 28. Qg3+ {[%clk 0:00:25.9]} 28... Kh8 {[%clk 0:00:17.2]} 29.
R5f4 {[%clk 0:00:15.4]} 29... Qe5 {[%clk 0:00:15.1]} 30. Qf3 {[%clk 0:00:13.3]}
30... Rg8 {[%clk 0:00:15.1]} 31. Rf2 {[%clk 0:00:08]} 31... Re1+ {[%clk
0:00:14.4]} 32. Kh2 {[%clk 0:00:08.2]} 32... Rg6 {[%clk 0:00:13.1]} 33. Rc2
{[%clk 0:00:04.2]} 33... Kg7 {[%clk 0:00:13.4]} 34. g3 {[%clk 0:00:04]} 34... d5
{[%clk 0:00:12.8]} 35. Qf2 {[%clk 0:00:04.1]} 35... Re4 {[%clk 0:00:12.4]} 36.
Rf3 {[%clk 0:00:03.3]} 36... h5 {[%clk 0:00:12.2]} 37. Kg2 {[%clk 0:00:02]}
37... h4 {[%clk 0:00:12.8]} 38. g4 {[%clk 0:00:02.5]} 38... d4 {[%clk
0:00:11.7]} 39. Rd2 {[%clk 0:00:02.5]} 39... Re3 {[%clk 0:00:11.8]} 40. Rd3
{[%clk 0:00:01.8]} 40... Rxf3 {[%clk 0:00:10.7]} 41. Qxf3 {[%clk 0:00:02]} 41...
f5 {[%clk 0:00:10.5]} 42. Qf2 {[%clk 0:00:01.8]} 42... fxg4 {[%clk 0:00:11]} 43.
Qxd4 {[%clk 0:00:02]} 43... gxh3+ {[%clk 0:00:11.2]} 44. Kxh3 {[%clk 0:00:02.3]}
44... Qxd4 {[%clk 0:00:08.2]} 45. Rxd4 {[%clk 0:00:03.2]} 45... Rg5 {[%clk
0:00:08.5]} 46. Kxh4 {[%clk 0:00:02.9]} 46... Rxb5 {[%clk 0:00:08.5]} 47. Rd7
{[%clk 0:00:03]} 47... Ra5 {[%clk 0:00:09]} 48. a4 {[%clk 0:00:03.4]} 48... Kf6
{[%clk 0:00:09.7]} 49. Kg4 {[%clk 0:00:03.3]} 49... Ke6 {[%clk 0:00:09.2]} 50.
Rb7 {[%clk 0:00:03.6]} 50... f5+ {[%clk 0:00:08.2]} 51. Kf4 {[%clk 0:00:03.9]}
51... Kd6 {[%clk 0:00:08.6]} 52. Ke3 {[%clk 0:00:03.1]} 52... Kc5 {[%clk
0:00:09.1]} 53. Kd3 {[%clk 0:00:03.6]} 53... Kb4 {[%clk 0:00:09.7]} 54. Kc2
{[%clk 0:00:04.1]} 54... Rc5+ {[%clk 0:00:09.8]} 55. Kb2 {[%clk 0:00:04.4]}
55... Re5 {[%clk 0:00:10.1]} 56. Kc2 {[%clk 0:00:03.7]} 56... Re2+ {[%clk
0:00:09]} 57. Kd3 {[%clk 0:00:04.2]} 57... Re4 {[%clk 0:00:08.6]} 58. Rxa7
{[%clk 0:00:03.3]} 58... Kxb3 {[%clk 0:00:09.2]} 59. Rb7 {[%clk 0:00:03.7]}
59... Rb4 {[%clk 0:00:09.7]} 60. Ra7 {[%clk 0:00:01.6]} 60... f4 {[%clk
0:00:10.3]} 0-1